bitfinex/quotes_ETHUSD_20250114
["timestamp","ask_amount","ask_price","bid_price","bid_amount"]
[1736865742200,0.03788425,3229.8,3228.7,0.55]
[1736865742628,0.03788425,3229.8,3228.6,0.7504]
[1736865742828,3.03788425,3229.8,3228.6,0.7504]
[1736865746554,0.243,3229.7,3228.6,0.7504]
[1736865746752,0.1916876,3229.6,3228.4,0.61988481]
[1736865746919,0.1916876,3229.6,3228.2,0.7504]
[1736865747261,0.1916876,3229.6,3228.3,0.55]
[1736865747671,0.1916876,3229.6,3228.3,1.172514]
[1736865748436,3.0,3229.4,3228.3,0.55]
[1736865748636,3.89001982,3229.1,3228.2,0.7504]
[1736865748934,0.03665402,3229.0,3228.2,0.7504]
[1736865749157,0.1538,3229.3,3228.2,0.7504]
[1736865749368,0.03765254,3229.2,3228.2,0.7504]
[1736865750738,0.03765254,3229.2,3228.1,0.63275271]
[1736865750739,3.0,3229.1,3227.6,0.7504]
[1736865750937,0.03644262,3229.0,3227.6,0.7504]
[1736865751337,0.03644262,3229.0,3227.7,0.55]
[1736865751537,0.03644262,3229.0,3227.9,0.6083249]
[1736865751950,0.03644262,3229.0,3228.0,0.55]
[1736865752249,0.03644262,3229.0,3227.9,0.6083249]
[1736865752250,0.242,3228.9,3228.2,0.55]
[1736865752563,0.0372412,3228.9,3228.2,0.55]
[1736865752733,0.242,3229.0,3228.2,0.55]
[1736865752934,0.03719526,3228.9,3228.2,0.55]
[1736865753283,0.03719526,3228.9,3228.1,0.7504]
[1736865753431,0.03719526,3228.9,3227.9,0.6083249]
[1736865755438,0.03719526,3228.9,3228.0,0.55]
[1736865755634,0.03719526,3228.9,3228.4,1.3004]
[1736865755848,0.03719526,3228.9,3228.6,0.55]
[1736865756084,0.242,3229.6,3228.6,0.55]
[1736865756589,0.242,3229.6,3228.4,0.7504]
[1736865756590,0.1538,3229.4,3228.4,0.7504]
[1736865756791,0.03590222,3229.3,3228.7,0.55]
[1736865757589,0.03590222,3229.3,3228.6,0.6245229]
[1736865757817,0.03590222,3229.3,3228.4,0.7504]
[1736865758174,3.0,3229.0,3227.8,0.7504]
[1736865758382,0.03576086,3228.9,3227.8,1.03713124]
[1736865758816,0.03576086,3228.9,3227.9,0.60969139]
[1736865759197,3.0,3228.7,3227.9,0.60969139]
[1736865759686,0.03469553,3228.6,3227.9,0.60969139]
[1736865760225,0.1538,3228.8,3228.0,0.55]
[1736865760374,0.03535011,3228.5,3228.0,0.55]
[1736865760575,0.242,3229.1,3228.0,0.74100914]
[1736865760768,0.03568341,3229.0,3228.0,0.74100914]
[1736865761415,0.03568341,3229.0,3227.9,0.60969139]
[1736865762806,0.03568341,3229.0,3227.5,0.7504]
[1736865762807,3.89803764,3228.6,3227.5,0.7504]
[1736865763137,3.1538,3228.9,3227.5,0.7504]
[1736865763347,3.1538,3228.9,3227.6,0.55]
[1736865763642,0.03559063,3228.8,3227.6,0.55]
[1736865764198,0.03559063,3228.8,3227.8,0.55]
[1736865765032,0.03559063,3228.8,3228.0,0.55]
[1736865765413,0.242,3229.2,3227.9,0.7504]
[1736865765617,0.242,3229.2,3228.1,0.28704098]
[1736865765857,0.03435544,3229.1,3228.1,0.28704098]
[1736865766653,0.03435544,3229.1,3228.0,0.6243349]
[1736865766960,0.03435544,3229.1,3228.1,0.55]
[1736865767158,0.242,3229.2,3228.1,0.55]
[1736865767333,0.03436572,3229.1,3228.1,0.55]
[1736865767538,0.03436572,3229.1,3228.1,0.74247349]
[1736865767738,0.03436572,3229.1,3228.0,0.6243349]
[1736865770458,0.1538,3229.0,3228.0,0.6243349]
[1736865770976,0.1538,3229.0,3227.5,0.7865]
[1736865770977,0.1538,3228.8,3227.5,0.7865]
[1736865771173,0.1538,3228.8,3227.3,2.55487845]
[1736865771174,3.0,3228.5,3227.3,2.55487845]
[1736865771335,0.18787358,3228.4,3227.4,0.28736944]
[1736865772075,0.1538,3228.0,3227.4,0.28736944]
[1736865772265,0.243,3227.9,3227.4,0.28736944]
[1736865772459,0.27659179,3227.9,3227.4,0.28736944]
[1736865772660,0.27659179,3227.9,3226.9,1.41443236]
[1736865773057,0.03359179,3227.9,3227.0,0.55]
[1736865773357,0.3968,3228.3,3227.3,0.7785]
[1736865774077,0.03302055,3228.2,3227.3,0.7785]
[1736865774451,0.3968,3228.3,3227.3,0.7785]
[1736865774876,0.02929562,3228.2,3227.3,0.7785]
[1736865775243,0.1538,3228.3,3227.4,0.55]
[1736865775473,0.243,3228.5,3227.4,0.55]
[1736865775656,0.03289639,3228.2,3227.5,0.52265376]
[1736865775854,0.243,3228.5,3227.5,0.63518561]
[1736865776284,0.03302975,3228.4,3227.5,0.63518561]
[1736865776491,0.03302975,3228.4,3227.3,0.7785]
[1736865776692,0.03302975,3228.4,3227.0,0.28733708]
[1736865776693,0.1538,3228.1,3227.0,0.28733708]
[1736865777072,0.03276301,3228.0,3227.0,0.28733708]
[1736865777593,0.03276301,3228.0,3226.6,0.7785]
[1736865777801,0.03276301,3228.0,3226.7,0.55]
[1736865777959,0.03276301,3228.0,3226.6,0.7785]
[1736865778158,0.03276301,3228.0,3226.9,0.61445752]
[1736865778386,3.1538,3227.7,3226.6,0.7785]
[1736865778575,0.2747843,3227.6,3226.6,0.7785]
[1736865778771,0.2747843,3227.6,3226.6,1.38954421]
[1736865778971,0.2747843,3227.6,3226.0,0.7785]
[1736865779390,0.2747843,3227.6,3226.1,0.55]
[1736865779708,0.2747843,3227.6,3226.3,0.60974095]
[1736865780005,0.1538,3227.5,3226.3,0.60974095]
[1736865780386,0.03236843,3227.4,3226.3,0.60974095]
[1736865780596,0.03236843,3227.4,3226.4,0.55]
[1736865780771,0.03236843,3227.4,3226.6,0.55]
[1736865780973,0.03236843,3227.4,3226.5,0.7676]
[1736865781192,0.03236843,3227.4,3226.3,0.60974095]
[1736865781392,3.03236843,3227.4,3226.3,0.60974095]
[1736865781763,3.0,3227.0,3226.3,0.60974095]
[1736865781964,0.03193104,3226.9,3226.1,0.7676]
[1736865782290,0.03193104,3226.9,3226.1,1.39463185]
[1736865782665,3.1538,3227.3,3226.1,1.39463185]
[1736865782867,0.0318643,3226.8,3226.1,1.39463185]
[1736865783066,0.1538,3227.3,3226.2,0.55]
[1736865783262,0.03179755,3226.7,3226.4,0.55]
[1736865783462,0.242,3227.5,3226.4,0.55]
[1736865783784,0.03171442,3227.4,3226.4,0.55]
[1736865783997,0.03171442,3227.4,3226.8,0.7676]
[1736865784198,0.242,3228.0,3226.8,0.7676]
[1736865784199,0.242,3228.0,3226.9,0.58098509]
[1736865784535,0.03210209,3227.9,3227.2,0.7676]
[1736865784695,0.03210209,3227.9,3227.4,0.55]
[1736865784906,0.242,3228.3,3227.4,0.55]
[1736865785282,0.0313081,3228.2,3227.4,0.55]
[1736865786030,0.03139909,3228.1,3227.1,0.61982816]
[1736865786318,0.03139909,3228.1,3227.3,0.7676]
[1736865786522,0.1538,3228.5,3227.4,0.55]
[1736865786728,0.03139102,3228.0,3227.4,0.55]
[1736865786908,6.99516211,3229.4,3227.6,0.55]
[1736865786909,0.1538,3228.8,3227.6,0.55]
[1736865787079,4.05239211,3228.8,3227.5,0.7676]
[1736865787285,0.242,3228.9,3226.7,3.89859211]
[1736865787286,3.89859211,3228.5,3226.7,0.7676]
[1736865787479,3.89859211,3228.5,3226.7,3.7676]
[1736865787681,0.03180678,3228.4,3227.0,4.44859211]
[1736865787924,0.27380678,3228.4,3227.5,0.55]
[1736865788127,0.03180678,3228.4,3227.5,0.55]
[1736865788366,0.1538,3228.6,3227.5,0.55]
[1736865788532,0.3958,3228.9,3227.5,0.55]
[1736865788732,0.03131778,3228.8,3227.7,0.55]
[1736865788923,0.3958,3228.9,3227.4,0.7676]
[1736865788924,0.3958,3228.9,3227.5,0.55]
[1736865789123,0.03160254,3228.8,3227.5,0.55]
[1736865789436,0.03160254,3228.8,3227.1,1.28921921]
[1736865789437,0.1538,3228.5,3227.1,1.28921921]
[1736865789636,0.1538,3228.5,3227.1,0.7676]
[1736865789841,0.0313358,3228.4,3227.1,0.7676]
[1736865790173,3.0,3228.3,3227.1,0.7676]
[1736865790381,0.18555015,3228.2,3227.1,0.7676]
[1736865790570,0.1538,3227.9,3226.4,0.7676]
[1736865790768,0.27357815,3227.8,3226.4,0.7676]
[1736865790966,0.27357815,3227.8,3226.8,0.61156403]
[1736865792038,3.0,3227.7,3226.8,0.61156403]
[1736865792242,0.1538,3227.6,3226.4,0.7676]
[1736865792442,0.18437913,3227.6,3226.4,0.7676]
[1736865792752,0.18437913,3227.6,3226.7,0.62621227]
[1736865796914,0.242,3227.5,3226.7,0.62621227]
[1736865797413,0.03085084,3227.4,3226.7,0.62621227]
[1736865797596,0.03085084,3227.4,3226.4,0.7676]
[1736865797771,3.03085084,3227.4,3225.9,0.28692447]
[1736865797969,3.0,3227.1,3226.2,0.63211932]
[1736865798173,3.0,3226.8,3225.9,0.28692447]
[1736865798376,0.02907095,3226.7,3225.9,0.28692447]
[1736865798608,0.1538,3227.0,3225.9,0.28692447]
[1736865798808,3.0,3226.8,3225.9,0.28692447]
[1736865799011,0.02908449,3226.7,3225.9,0.28692447]
[1736865799370,0.02908449,3226.7,3225.6,1.36672707]
[1736865799783,0.02908449,3226.7,3225.7,0.55]
[1736865800532,3.0,3226.2,3225.0,0.7577]
[1736865800824,3.0,3226.5,3225.2,0.62845684]
[1736865800825,0.42586124,3226.1,3225.2,0.62845684]
[1736865801407,0.42586124,3226.1,3225.0,0.7577]
[1736865801794,0.42586124,3226.1,3225.0,1.36494055]
[1736865802974,0.42586124,3226.1,3225.1,0.55]
[1736865803125,3.89859211,3226.0,3224.8,0.1659143]
[1736865803326,0.1538,3225.8,3224.8,0.1659143]
[1736865803527,0.02958611,3225.7,3224.8,0.1659143]
[1736865805539,0.1538,3225.6,3224.8,0.1659143]
[1736865805739,3.89859211,3225.4,3224.8,0.1659143]
[1736865805967,0.1538,3225.2,3224.8,0.1659143]
[1736865806173,3.0,3225.0,3224.8,0.1659143]
[1736865806380,0.3958,3224.9,3224.8,0.1659143]
[1736865806758,3.0,3224.7,3223.1,2.55487845]
[1736865806957,3.0,3224.1,3223.1,2.55487845]
[1736865807172,3.0,3223.8,3223.1,0.6107804]
[1736865807340,3.26921012,3223.8,3222.1,7.87636722]
[1736865807684,3.242,3223.8,3222.2,1.54533672]
[1736865808043,3.89859211,3223.6,3222.2,0.7577]
[1736865808283,0.242,3223.8,3221.6,4.06450641]
[1736865808284,3.89859211,3223.0,3221.7,0.7577]
[1736865808491,3.0,3222.9,3222.3,0.32369204]
[1736865808890,3.10219,3223.6,3221.9,0.61189825]
[1736865808891,0.1538,3222.4,3221.9,0.61189825]
[1736865809063,0.1538,3222.4,3221.6,0.1659143]
[1736865809064,0.242,3222.3,3221.6,0.1659143]
[1736865809401,3.0,3221.9,3221.6,0.1659143]
[1736865809560,6.89859211,3221.7,3221.6,0.1659143]
[1736865809763,7.05239211,3221.7,3221.6,0.1659143]
[1736865810296,7.29439211,3221.7,3221.6,0.1659143]
[1736865812276,3.3958,3221.7,3221.6,0.1659143]
[1736865812651,3.1538,3221.7,3221.6,0.1659143]
[1736865812892,3.89859211,3222.6,3221.6,0.1659143]
[1736865813183,0.3958,3222.5,3221.6,0.1659143]
[1736865813796,0.1538,3222.5,3221.6,0.1659143]
[1736865814902,0.1538,3222.9,3221.8,0.55]
[1736865815308,0.1538,3222.9,3221.7,0.7577]
[1736865815611,0.1538,3222.2,3221.6,0.1659143]
[1736865815791,3.0,3221.9,3221.6,0.1659143]
[1736865815975,0.242,3221.8,3221.6,0.1659143]
[1736865816313,6.89859211,3221.7,3221.6,0.1659143]
[1736865816474,7.05239211,3221.7,3221.6,0.1659143]
[1736865816666,0.1538,3221.4,3219.8,0.63047295]
[1736865816861,3.0,3220.4,3219.2,0.32375954]
[1736865817110,0.242,3220.3,3219.2,0.32375954]
[1736865817415,3.0,3220.1,3219.2,0.32375954]
[1736865818287,0.242,3220.3,3219.2,0.32375954]
[1736865818892,3.0,3220.1,3219.2,0.32375954]
[1736865819270,0.242,3220.3,3219.2,0.32375954]
[1736865820066,0.1538,3220.5,3219.2,0.32375954]
[1736865820067,0.1538,3220.5,3219.3,0.55]
[1736865820397,0.242,3220.4,3219.3,0.55]
[1736865820988,0.1538,3221.0,3219.5,0.55]
[1736865821203,0.242,3220.9,3219.5,0.55]
[1736865821503,0.1538,3221.0,3219.5,0.55]
[1736865821734,0.242,3220.9,3219.7,0.55]
[1736865821913,0.1538,3221.0,3219.7,0.55]
[1736865822236,0.242,3221.3,3219.9,0.55]
[1736865822438,0.242,3221.2,3219.9,0.55]
[1736865822997,0.242,3221.4,3220.1,0.55]
[1736865823196,0.242,3221.7,3220.1,0.55]
[1736865823524,0.242,3221.7,3220.1,3.65543]
[1736865823730,0.1538,3222.0,3220.6,0.55]
[1736865823927,0.242,3221.9,3220.6,0.55]
[1736865824424,0.242,3221.9,3220.6,1.16257819]
[1736865825529,2.479,3222.1,3220.6,1.16257819]
[1736865825888,2.237,3222.1,3220.6,0.61257819]
[1736865826090,0.242,3222.0,3220.6,0.61257819]
[1736865826292,0.242,3222.0,3220.5,0.7577]
[1736865826561,0.1538,3221.9,3220.5,0.7577]
[1736865827420,0.242,3221.8,3220.5,0.7577]
[1736865827955,0.242,3221.8,3220.6,0.55]
[1736865828527,0.242,3221.8,3220.5,0.7577]
[1736865828695,0.242,3221.8,3220.6,0.55]
[1736865828896,2.39804843,3222.7,3220.9,0.7723]
[1736865829095,2.39804843,3222.7,3221.4,3.10424]
[1736865829318,2.39804843,3222.7,3221.7,0.7723]
[1736865830436,2.39804843,3222.7,3221.8,0.55]
[1736865830812,2.39804843,3222.7,3221.7,0.7723]
[1736865831150,3.1538,3222.6,3221.7,0.7723]
[1736865832651,2.39804843,3222.7,3221.7,0.7723]
[1736865832652,2.15604843,3222.7,3221.7,0.7723]
[1736865832812,0.242,3222.6,3221.7,0.7723]
[1736865835767,4.52735225,3222.3,3220.9,1.34444875]
[1736865835949,3.0,3222.2,3220.9,1.34444875]
[1736865836131,3.0,3222.2,3220.9,1.05821098]
[1736865836320,3.0,3221.8,3220.9,0.28591098]
[1736865836521,3.0,3221.4,3220.9,0.28591098]
[1736865836723,0.242,3221.3,3220.9,0.28591098]
[1736865836948,0.242,3221.3,3220.1,0.28591098]
[1736865837526,0.1538,3221.2,3220.1,0.28591098]
[1736865838241,0.1538,3221.2,3219.7,0.7723]
[1736865838782,0.1538,3221.2,3219.8,0.55]
[1736865840166,3.0,3221.8,3220.0,0.55]
[1736865840167,0.1538,3221.7,3220.0,0.55]
[1736865840327,0.242,3221.1,3220.2,0.55]
[1736865840835,0.242,3221.1,3220.4,0.55]
[1736865841164,2.15604843,3222.7,3220.6,0.55]
[1736865841165,0.1538,3222.6,3220.6,0.55]
[1736865841363,0.242,3222.0,3220.6,0.55]
[1736865841562,0.242,3222.0,3220.5,0.7815]
[1736865842426,0.242,3222.0,3220.8,0.55]
[1736865843932,0.242,3222.0,3220.7,0.7815]
[1736865844238,3.0,3221.4,3220.2,0.7815]
[1736865844585,0.1538,3221.9,3220.3,0.03104929]
[1736865844741,0.1538,3221.9,3220.3,0.55]
[1736865844938,3.1538,3221.9,3220.2,1.3578318]
[1736865845144,3.1538,3221.9,3220.3,0.03105121]
[1736865845343,3.1538,3221.9,3220.2,1.3578318]
[1736865845573,3.1538,3221.9,3220.2,1.06968036]
[1736865846072,3.0,3221.4,3220.2,0.7815]
[1736865846656,3.0,3221.4,3219.8,2.55011083]
[1736865846657,3.0,3221.2,3219.8,0.7815]
[1736865846873,0.1538,3221.3,3219.8,0.7815]
[1736865847186,0.1538,3221.3,3219.9,0.55]
[1736865847345,0.242,3221.3,3219.9,0.55]
[1736865847747,0.242,3221.3,3219.9,3.10011083]
[1736865848149,0.242,3221.3,3220.0,1.06988176]
[1736865848594,0.1538,3222.2,3220.2,0.7815]
[1736865848760,0.242,3221.5,3220.3,0.55]
[1736865848968,0.242,3221.5,3220.4,0.7815]
[1736865849349,0.242,3221.5,3220.4,3.33161083]
[1736865849996,0.242,3221.5,3220.4,0.7815]
[1736865850672,0.3958,3221.5,3220.4,0.7815]
[1736865851147,0.242,3221.5,3220.4,0.7815]
[1736865851675,0.1538,3221.9,3220.7,0.7815]
[1736865851676,0.242,3221.9,3220.7,0.7815]
[1736865851884,0.242,3221.9,3220.8,0.55]
[1736865852181,0.242,3221.9,3220.9,3.33161083]
[1736865852692,0.242,3221.9,3221.1,2.55011083]
[1736865853356,0.242,3221.8,3221.1,2.55011083]
[1736865854364,0.242,3221.8,3221.0,2.55011083]
[1736865854693,0.242,3221.8,3220.9,3.33161083]
[1736865855595,0.242,3221.8,3220.9,0.7815]
[1736865857486,0.1538,3222.5,3221.0,0.55]
[1736865857660,0.242,3222.2,3221.1,0.7847]
[1736865858179,0.242,3222.2,3221.1,3.33481083]
[1736865858382,0.242,3222.2,3221.1,0.7847]
[1736865858797,0.242,3222.2,3221.2,0.55]
[1736865859093,2.03073158,3222.6,3221.6,0.55]
[1736865859317,2.03073158,3222.6,3221.8,0.55]
[1736865859517,2.03073158,3222.6,3221.7,0.7847]
[1736865859700,0.242,3222.5,3221.7,0.7847]
[1736865860817,2.03073158,3222.6,3221.7,0.7847]
[1736865860818,2.03073158,3222.6,3221.8,0.58103405]
[1736865861020,2.03073158,3222.6,3221.8,0.55]
[1736865862021,2.03073158,3222.6,3222.0,0.55]
[1736865862681,2.03073158,3222.6,3221.9,0.7847]
[1736865862881,0.242,3223.3,3222.1,0.7847]
[1736865863823,0.1538,3223.2,3222.1,0.7847]
[1736865864118,0.1538,3223.2,3221.7,0.7847]
[1736865864119,0.1538,3223.1,3221.7,0.7847]
[1736865864286,0.1538,3223.1,3221.5,0.28823119]
[1736865864287,3.0,3222.8,3221.1,2.55011083]
[1736865864619,3.0,3222.8,3220.6,3.82516625]
[1736865864620,0.1538,3222.7,3221.2,0.7847]
[1736865865991,0.1538,3222.7,3221.3,0.58103741]
[1736865866198,0.1538,3222.7,3221.3,0.55]
[1736865870923,0.242,3223.2,3221.7,0.7688]
[1736865871123,0.242,3223.2,3221.8,0.55]
[1736865871694,0.1538,3223.1,3221.8,0.55]
[1736865873134,0.1538,3223.1,3221.7,0.7688]
[1736865873723,0.1538,3223.4,3222.0,0.55]
[1736865874439,0.1538,3223.4,3222.1,0.62909232]
[1736865874938,0.242,3223.3,3222.2,0.55]
[1736865875433,0.242,3223.3,3222.1,0.82267155]
[1736865875791,0.1538,3223.2,3222.1,0.66012115]
[1736865875996,0.1538,3223.2,3222.2,1.3067]
[1736865876404,4.52735225,3224.3,3222.2,1.3067]
[1736865876605,0.3958,3224.2,3222.2,1.33772718]
[1736865877096,0.3958,3224.2,3222.7,0.55]
[1736865877415,0.1538,3223.8,3222.2,0.7567]
[1736865877597,0.1538,3223.7,3222.2,0.6280073]
[1736865877921,0.1538,3223.7,3221.6,0.7567]
[1736865877922,0.1538,3223.3,3221.6,0.7567]
[1736865878122,0.1538,3223.1,3221.6,0.7567]
[1736865878327,0.242,3223.0,3221.6,0.7567]
[1736865878640,0.242,3223.0,3221.8,0.6347213]
[1736865878943,0.1538,3222.9,3221.8,0.6347213]
[1736865879098,0.1538,3222.9,3221.6,0.7567]
[1736865879516,0.1538,3222.9,3221.4,0.61482798]
[1736865879906,0.1538,3222.9,3221.5,0.55]
[1736865880119,0.1538,3222.9,3221.7,0.55]
[1736865881031,0.1538,3223.3,3221.8,0.55]
[1736865881233,3.10118,3224.6,3221.8,0.55]
[1736865881234,0.242,3224.1,3222.2,0.7567]
[1736865881432,0.242,3224.1,3222.3,0.55]
[1736865881608,0.242,3224.1,3222.7,0.61706597]
[1736865881812,0.1538,3224.0,3222.7,0.61706597]
[1736865882213,0.1538,3223.9,3222.1,0.03102353]
[1736865882417,0.1538,3223.9,3221.8,0.7567]
[1736865882637,0.1538,3223.8,3222.0,0.55]
[1736865882837,0.1538,3223.8,3222.3,0.55]
[1736865883738,0.1538,3223.8,3221.9,0.5810272]
[1736865883938,0.1538,3223.8,3222.1,0.55]
[1736865884244,0.1538,3223.8,3222.3,0.55]
[1736865886352,0.242,3223.7,3222.3,0.55]
[1736865886654,0.1538,3223.8,3222.5,0.55]
[1736865887010,0.1538,3223.8,3222.6,0.03102353]
[1736865887216,0.1538,3223.8,3222.5,0.58102]
[1736865887529,0.1538,3224.2,3223.1,1.3125]
[1736865887716,0.1538,3224.2,3223.2,0.03101793]
[1736865888069,0.1538,3224.7,3223.3,0.55]
[1736865888533,0.1538,3224.7,3223.8,0.61682388]
[1736865889444,3.0,3224.5,3222.8,3.90869263]
[1736865889656,0.1538,3224.4,3222.9,0.39086926]
[1736865889836,0.1538,3224.4,3222.2,6.41606083]
[1736865890143,0.1538,3224.4,3222.3,0.03102045]
[1736865890350,0.1538,3224.4,3222.2,3.86595]
[1736865890545,3.0,3224.2,3222.2,0.7625]
[1736865890848,0.1538,3224.1,3222.2,0.7625]
[1736865891362,0.1538,3224.1,3222.6,0.55]
[1736865894373,3.0,3223.9,3222.5,0.63254518]
[1736865894578,0.1538,3223.8,3222.5,0.63254518]
[1736865894778,0.1538,3223.6,3222.5,0.63254518]
[1736865895682,0.1538,3223.6,3222.6,0.55]
[1736865899201,0.1538,3223.6,3222.5,0.63254518]
[1736865899405,4.51625476,3225.0,3222.7,0.55]
[1736865899406,0.1538,3223.9,3222.7,0.55]
[1736865900098,0.1538,3223.9,3222.7,0.5810174]
[1736865900418,0.1538,3223.9,3223.4,0.55]
[1736865900674,0.1538,3224.3,3223.4,0.55]
[1736865900984,0.1538,3224.3,3223.5,0.20019721]
[1736865901588,0.1538,3224.3,3223.4,0.55]
[1736865902134,0.1538,3224.8,3223.5,0.8315]
[1736865902437,0.1538,3224.8,3223.6,0.55]
[1736865902787,0.1538,3224.8,3223.4,0.55]
[1736865904428,0.1538,3224.6,3223.3,0.62047209]
[1736865904610,0.37890009,3224.5,3222.5,2.55011083]
[1736865904795,0.1538,3224.4,3222.6,0.33816108]
[1736865904990,0.1538,3224.4,3223.2,0.55]
[1736865905320,0.1538,3224.3,3223.1,0.63638482]
[1736865905523,0.1538,3224.3,3222.5,0.55]
[1736865905721,0.1538,3224.3,3223.0,0.61682248]
[1736865906987,0.1538,3224.3,3222.5,0.55]
[1736865907193,0.1538,3224.1,3222.5,0.55]
[1736865907815,0.1538,3224.1,3222.8,0.63478155]
[1736865908015,3.0,3224.4,3222.8,0.63478155]
[1736865908016,3.0,3223.9,3222.8,0.63478155]
[1736865908246,0.1538,3223.6,3222.2,0.61582821]
[1736865908540,0.1538,3223.2,3222.1,0.57642416]
[1736865908841,0.1538,3223.2,3222.1,0.28821104]
[1736865909209,0.1538,3223.2,3221.8,0.63664581]
[1736865909711,0.1538,3223.2,3221.8,1.01907425]
[1736865909924,0.1538,3223.2,3221.8,0.63664581]
[1736865910524,0.1538,3223.2,3221.9,0.55]
[1736865911057,0.1538,3223.2,3221.8,0.63664581]
[1736865911258,4.06646889,3222.9,3221.8,0.63664581]
[1736865911464,3.1538,3222.8,3221.8,0.63664581]
[1736865911609,0.1538,3222.7,3221.8,0.63664581]
[1736865911805,0.1538,3222.7,3221.0,0.8315]
[1736865912060,3.91266889,3222.1,3220.7,2.55011083]
[1736865912211,0.1538,3221.9,3220.8,0.6299966]
[1736865913160,3.0,3221.2,3220.6,2.55011083]
[1736865913326,0.1538,3221.1,3220.6,2.55011083]
[1736865913534,0.1538,3220.7,3219.9,2.55011083]
[1736865913820,0.1538,3220.5,3219.9,2.55011083]
[1736865914061,3.91266889,3220.5,3219.9,2.55011083]
[1736865914279,3.91266889,3220.5,3218.8,2.55011083]
[1736865914280,0.1538,3220.4,3218.8,2.55011083]
[1736865914412,0.1538,3220.4,3219.2,0.6128144]
[1736865914613,0.1538,3220.4,3218.9,0.57377494]
[1736865914907,0.1538,3220.0,3219.0,0.60951669]
[1736865915128,0.1538,3220.0,3218.4,0.1659143]
[1736865915842,3.0,3219.9,3218.4,0.1659143]
[1736865916135,4.52875415,3219.4,3218.4,0.1659143]
[1736865916334,3.0,3219.6,3218.4,0.1659143]
[1736865916335,0.1538,3218.9,3218.4,0.1659143]
[1736865916778,0.1538,3218.5,3218.4,0.1659143]
[1736865917078,0.3948,3218.5,3218.4,0.1659143]
[1736865917924,0.9448,3218.5,3218.4,0.0121143]
[1736865918123,0.3948,3218.5,3218.4,0.0121143]
[1736865918553,0.9448,3218.5,3218.4,0.0121143]
[1736865919055,0.9448,3218.5,3217.3,2.55011083]
[1736865919056,3.0,3218.3,3217.3,2.55011083]
[1736865919360,3.65713,3218.4,3217.3,2.55011083]
[1736865919361,3.0,3217.4,3217.3,2.55011083]
[1736865919573,3.242,3217.4,3217.3,2.55011083]
[1736865920066,0.242,3217.4,3217.3,2.55011083]
[1736865921198,0.242,3217.4,3215.4,0.8024]
[1736865921199,3.242,3217.4,3215.4,0.8024]
[1736865921482,3.242,3217.4,3215.8,0.55]
[1736865921902,3.242,3217.4,3215.4,0.8024]
[1736865922077,3.242,3217.4,3214.1,0.25]
[1736865922078,3.0,3216.5,3214.8,0.8024]
[1736865922236,3.0,3216.5,3214.3,0.8024]
[1736865922685,3.0,3216.0,3214.7,0.63372035]
[1736865922980,0.242,3215.9,3214.2,2.55011083]
[1736865923795,0.242,3215.8,3214.3,0.03110306]
[1736865923996,0.242,3215.7,3214.2,2.58121227]
[1736865924198,0.242,3215.7,3214.2,2.58121007]
[1736865924406,0.242,3215.7,3214.2,2.55011083]
[1736865924870,3.0,3215.4,3214.2,2.55011083]
[1736865925399,3.0,3215.3,3214.2,2.55011083]
[1736865925769,3.0,3215.3,3214.2,2.58121625]
[1736865925966,4.52875415,3217.0,3214.2,10.19000498]
[1736865926295,0.242,3216.9,3214.3,0.03109859]
[1736865926489,7.63731415,3217.0,3214.3,0.03109859]
[1736865926656,4.52875415,3216.5,3214.2,3.11113]
[1736865926850,3.0,3216.4,3214.2,3.14223163]
[1736865927066,0.242,3216.9,3214.5,0.62468855]
[1736865927272,0.242,3216.9,3215.1,0.8024]
[1736865927519,2.24,3217.1,3215.1,0.8024]
[1736865927520,0.242,3216.8,3215.1,0.8024]
[1736865927825,0.242,3216.7,3215.1,0.8024]
[1736865928121,0.242,3216.7,3215.3,0.55]
[1736865928603,2.24,3217.1,3215.3,0.55]
[1736865928806,0.242,3217.0,3215.5,1.3524]
[1736865929002,2.24,3217.1,3215.7,0.55]
[1736865929222,0.242,3217.0,3215.7,0.55]
[1736865929386,2.24,3217.1,3215.5,0.8024]
[1736865929387,0.242,3216.9,3215.6,0.55]
[1736865929568,0.242,3216.9,3215.7,0.3102]
[1736865929772,0.242,3217.1,3215.9,1.3524]
[1736865930072,0.242,3217.1,3216.1,0.55]
[1736865930304,0.242,3217.5,3216.3,0.767]
[1736865930516,0.37890009,3218.4,3216.4,0.55]
[1736865930823,4.52875415,3218.5,3216.9,0.767]
[1736865931128,3.0,3218.0,3216.4,0.767]
[1736865931268,3.0,3217.8,3216.4,0.767]
[1736865931469,3.0,3217.8,3214.7,0.25]
[1736865931470,3.0,3217.8,3216.0,0.767]
[1736865931725,7.52875415,3217.6,3216.0,0.767]
[1736865932006,7.52875415,3217.6,3215.3,1.317]
[1736865932303,4.52875415,3217.6,3215.5,0.55]
[1736865932479,0.242,3217.7,3215.2,0.19700465]
[1736865932480,0.242,3217.7,3215.9,0.55]
[1736865932819,0.242,3217.7,3215.8,0.767]
[1736865933022,0.242,3217.7,3215.9,0.55]
[1736865933319,0.242,3217.6,3215.9,0.55]
[1736865933524,0.242,3217.8,3216.2,3.10925]
[1736865933724,0.242,3217.8,3216.1,3.55]
[1736865933725,0.242,3217.9,3216.5,0.55]
[1736865934993,3.0,3218.1,3216.5,0.55]
[1736865935223,0.242,3218.0,3216.4,0.767]
[1736865935417,0.242,3218.0,3216.6,0.03108315]
[1736865935725,0.242,3218.0,3216.4,0.767]